fUST/lending_fUST_20260120
["ID","MTS","AMOUNT","RATE_DAILY","PERIOD"]
[402766391,1768895922291,-500.0,0.00027397,120]
[402766392,1768895922343,-500.0,0.00027397,120]
[402766393,1768895922395,-466.65076626,0.00027397,120]
[402766394,1768895922449,-500.0,0.00027397,120]
[402766395,1768895922503,-500.0,0.00027397,120]
[402766396,1768895922553,-500.0,0.00027397,120]
[402766397,1768895922598,-500.0,0.00027397,120]
[402766398,1768895922644,-500.86211786,0.00027397,120]
[402766399,1768895922688,-312.67201,0.00027397,120]
[402766400,1768895922734,-500.0,0.00027397,120]
[402766401,1768895922918,-500.0,0.00027397,120]
[402766402,1768895922972,-500.0,0.00027397,120]
[402766403,1768895923027,-500.0,0.00027397,120]
[402766404,1768895923083,-500.0,0.00027397,120]
[402766405,1768895923137,-500.0,0.00027397,120]
[402766406,1768895923194,-500.0,0.00027397,120]
[402766407,1768895923249,-500.0,0.00027397,120]
[402766408,1768895923302,-500.0,0.00027397,120]
[402766409,1768895923356,-340.50425982,0.00027397,120]
[402766410,1768895923413,-500.0,0.00027397,120]
[402766411,1768895923467,-263.46,0.00027397,120]
[402766412,1768895923518,-500.0,0.00027397,120]
[402766413,1768895923567,-500.0,0.00027397,120]
[402766414,1768895923615,-500.0,0.00027397,120]
[402766415,1768895923662,-273.62301833,0.00027397,120]
[402766416,1768895923707,-500.0,0.00027397,120]
[402766417,1768895923753,-500.0,0.00027397,120]
[402766418,1768895923800,-500.0,0.00027397,120]
[402766419,1768895923845,-500.0,0.00027397,120]
[402766420,1768895923893,-500.0,0.00027397,120]
[402766421,1768895923945,-282.32661009,0.00027397,120]
[402766422,1768895923998,-500.0,0.00027397,120]
[402766423,1768895924053,-500.0,0.00027397,120]
[402766424,1768895924109,-500.0,0.00027397,120]
[402766425,1768895924165,-634.09097424,0.00027397,120]
[402766426,1768895924223,-529.22091831,0.00027397,120]
[402766427,1768895924281,-500.0,0.00027397,120]
[402766428,1768895924334,-500.0,0.00027397,120]
[402766429,1768895924386,-500.0,0.00027397,120]
[402766430,1768895924446,-500.0,0.00027397,120]
[402766431,1768895924506,-500.0,0.00027397,120]
[402766432,1768895924563,-500.0,0.00027397,120]
[402766433,1768895924619,-239.28503067,0.00027397,120]
[402766434,1768895924677,-500.0,0.00027397,120]
[402766435,1768895924731,-501.39101167,0.00027397,120]
[402766436,1768895924787,-500.0,0.00027397,120]
[402766437,1768895924842,-503.94942776,0.00027397,120]
[402766438,1768895924903,-500.0,0.00027397,120]
[402766439,1768895924962,-526.87195899,0.00027397,120]
[402766440,1768895925031,-500.0,0.00027397,120]
[402766441,1768895925093,-500.0,0.00027397,120]
[402766442,1768895925147,-500.0,0.00027397,120]
[402766443,1768895925199,-500.0,0.00027397,120]
[402766444,1768895925256,-500.0,0.00027397,120]
[402766445,1768895925312,-602.08460622,0.00027397,120]
[402766446,1768895925368,-500.0,0.00027397,120]
[402766447,1768895925423,-500.89599162,0.00027397,120]
[402766448,1768895925475,-500.0,0.00027397,120]
[402766449,1768895925525,-501.95245907,0.00027397,120]
[402766450,1768895925575,-500.0,0.00027397,120]
[402766451,1768895925626,-500.91905825,0.00027397,120]
[402766452,1768895925687,-500.0,0.00027397,120]
[402766453,1768895925741,-500.0,0.00027397,120]
[402766454,1768895925795,-500.0,0.00027397,120]
[402766455,1768895925844,-500.0,0.00027397,120]
[402766456,1768895925891,-500.0,0.00027397,120]
[402766457,1768895925945,-500.0,0.00027397,120]
[402766458,1768895925996,-500.0,0.00027397,120]
[402766459,1768895926049,-500.0,0.00027397,120]
[402766460,1768895926105,-447.04,0.00027397,120]
[402766461,1768895926153,-500.0,0.00027397,120]
[402766462,1768895926204,-500.0,0.00027397,120]
[402766463,1768895926256,-500.0,0.00027397,120]
[402766464,1768895926303,-500.0,0.00027397,120]
[402766465,1768895926351,-471.67282877,0.00027397,120]
[402766466,1768895926400,-500.0,0.00027397,120]
[402766467,1768895926453,-591.63898167,0.00027397,120]
[402766468,1768895926509,-501.15421795,0.00027397,120]
[402766469,1768895926562,-500.0,0.00027397,120]
[402766470,1768895926614,-500.0,0.00027397,120]
[402766471,1768895926669,-500.0,0.00027397,120]
[402766472,1768895926725,-500.0,0.00027397,120]
[402766473,1768895926784,-500.0,0.00027397,120]
[402766474,1768895926842,-500.0,0.00027397,120]
[402766475,1768895926896,-500.0,0.00027397,120]
[402766476,1768895926953,-500.0,0.00027397,120]
[402766477,1768895927010,-333.78409854,0.00027397,120]
[402766478,1768895927067,-500.0,0.00027397,120]
[402766479,1768895927122,-500.0,0.00027397,120]
[402766480,1768895927178,-350.84,0.00027397,120]
[402766481,1768895927233,-500.0,0.00027397,120]
[402766482,1768895927287,-500.0,0.00027397,120]
[402766483,1768895927339,-501.47529557,0.00027397,120]
[402766484,1768895927391,-502.2863811,0.00027397,120]
[402766485,1768895927444,-500.0,0.00027397,120]
[402766486,1768895927497,-500.0,0.00027397,120]
[402766487,1768895927549,-500.0,0.00027397,120]
[402766488,1768895927599,-240.06155639,0.00027397,120]
[402766489,1768895927651,-474.33001,0.00027397,120]
[402766490,1768895927698,-500.0,0.00027397,120]
[402766491,1768895927745,-500.0,0.00027397,120]
[402766492,1768895927960,-500.0,0.00027397,120]
[402766493,1768895928016,-500.0,0.00027397,120]
[402766494,1768895928070,-500.0,0.00027397,120]
[402766495,1768895928130,-500.0,0.00027397,120]
[402766496,1768895928182,-500.0,0.00027397,120]
[402766497,1768895928232,-331.83118781,0.00027397,120]
[402766498,1768895928284,-500.0,0.00027397,120]
[402766499,1768895928334,-501.5283486,0.00027397,120]
[402766500,1768895928384,-500.0,0.00027397,120]
[402766501,1768895928434,-421.09654374,0.00027397,120]
[402766502,1768895928487,-500.98953789,0.00027397,120]
[402766503,1768895928539,-500.0,0.00027397,120]
[402766504,1768895928590,-258.02467833,0.00027397,120]
[402766505,1768895928640,-500.0,0.00027397,120]
[402766506,1768895928690,-574.79050744,0.00027397,120]
[402766507,1768895928742,-500.0,0.00027397,120]
[402766508,1768895928792,-500.0,0.00027397,120]
[402766509,1768895928840,-515.47,0.00027397,120]
[402766510,1768895928887,-501.64574479,0.00027397,120]
[402766511,1768895928936,-500.0,0.00027397,120]
[402766512,1768895928983,-500.0,0.00027397,120]
[402766513,1768895929031,-489.65917742,0.00027397,120]
[402766514,1768895929081,-500.0,0.00027397,120]
[402766515,1768895929133,-500.0,0.00027397,120]
[402766516,1768895929185,-500.0,0.00027397,120]
[402766517,1768895929239,-555.83193618,0.00027397,120]
[402766518,1768895929296,-10000.0,0.00027397,120]
[402766519,1768895929819,177.00311765,0.00027397,120]
[402766520,1768895930364,261.93,5.956e-05,2]
[402766521,1768895930430,523.87,6.24e-05,2]
[402766522,1768895930518,785.8,6.523e-05,2]
[402766523,1768895930565,1047.74,6.807e-05,2]
[402766524,1768895930873,1156.50748701,0.00027297,120]
[402766525,1768895931072,-1309.67,7.091e-05,2]
[402766526,1768895931110,-1007.0,7.697e-05,2]
[402766527,1768895931182,-621.90451453,7.697e-05,2]
[402766528,1768895931213,-500.0,7.697e-05,2]
[402766529,1768895931243,-500.0,7.697e-05,2]
[402766530,1768895931275,-500.0,7.697e-05,2]
[402766531,1768895931308,-189.6042591,7.697e-05,2]
[402766532,1768895931554,395.16224838,0.00027397,120]
[402766533,1768895931665,640.16818098,0.00027397,120]
[402766534,1768895932951,500.0,0.00027397,120]
[402766535,1768895933786,500.0,0.00027397,120]
[402766536,1768895933844,463.67141317,0.00027397,120]
[402766537,1768895934006,-621.90451453,7.698e-05,2]
[402766538,1768895934018,-500.0,7.698e-05,2]
[402766539,1768895934030,-500.0,7.698e-05,2]
[402766540,1768895934042,-500.0,7.698e-05,2]
[402766541,1768895934053,-500.0,7.698e-05,2]
[402766542,1768895939045,500.0,7.696e-05,2]
[402766543,1768895939079,500.0,7.696e-05,2]
[402766544,1768895939113,612.47162259,7.696e-05,2]
[402766545,1768895939162,500.0,7.696e-05,2]
[402766546,1768895939200,315.68034338,7.696e-05,2]
[402766547,1768895939237,500.0,7.696e-05,2]
[402766548,1768895939269,500.0,7.696e-05,2]
[402766549,1768895939307,500.0,7.696e-05,2]
[402766550,1768895939340,500.0,7.696e-05,2]
[402766551,1768895939374,500.0,7.696e-05,2]
[402766552,1768895939408,438.51803403,7.696e-05,2]
[402766553,1768895939432,61.48196597,7.696e-05,2]
[402766554,1768895939466,270.36283969,7.696e-05,2]
[402766555,1768895939499,568.73929737,7.696e-05,2]
[402766556,1768895939538,500.0,7.696e-05,2]
[402766557,1768895939584,500.0,7.696e-05,2]
[402766558,1768895939624,500.0,7.696e-05,2]
[402766559,1768895939662,500.0,7.696e-05,2]
[402766560,1768895942619,-340.60564847,7.698e-05,2]
[402766561,1768895944748,-682.73344204,7.698e-05,2]
[402766562,1768895950490,-285.43965057,7.698e-05,2]
[402766563,1768895950560,1282.43,0.00027297,120]
[402766564,1768895952571,1282.43,0.00027297,120]
[402766565,1768895953012,-242.99275958,7.698e-05,2]
[402766566,1768895955172,1282.43,0.00027297,120]
[402766567,1768895955325,-229.49724042,7.698e-05,2]
[402766568,1768895957217,1282.43,0.00027297,120]
[402766569,1768895959769,1282.43,0.00027297,120]
[402766570,1768895959839,-288.78131834,7.698e-05,2]
[402766571,1768895961829,1282.43,0.00027297,120]
[402766572,1768895993693,233.5,6.376e-05,2]
[402766573,1768895994122,466.99,6.68e-05,2]
[402766574,1768895994593,700.49,6.984e-05,2]
[402766575,1768895995562,933.98,7.287e-05,2]
[402766576,1768895996303,1167.48,7.591e-05,2]
[402766577,1768896003712,379.17,0.0002739,120]
[402766578,1768896018413,382.0,0.00026527,120]
[402766579,1768896040677,201.0,0.00025123,120]
[402766580,1768896042058,-528.0,7.698e-05,2]
[402766581,1768896042150,201.0,0.00026379,120]
[402766582,1768896046513,500.0,0.00027397,120]
[402766583,1768896046780,502.04912481,0.00027397,120]
[402766584,1768896087511,500.0,0.00027397,120]
[402766585,1768896087754,500.0,0.00027397,120]
[402766586,1768896087993,500.0,0.00027397,120]
[402766587,1768896088240,500.0,0.00027397,120]
[402766588,1768896088478,196.39222303,0.00027397,120]
[402766589,1768896091372,188.92,6.666e-05,2]
[402766590,1768896091801,377.84,6.984e-05,2]
[402766591,1768896092244,566.76,7.301e-05,2]
[402766592,1768896092709,755.68,7.619e-05,2]
[402766593,1768896099684,502.86943091,0.00027397,120]
[402766594,1768896142897,500.0,0.00027397,120]
[402766595,1768896143151,500.0,0.00027397,120]
[402766596,1768896143675,543.57317916,0.00027397,120]
[402766597,1768896160612,435.33316017,7.697e-05,2]
[402766598,1768896171913,164.88,6.779e-05,2]
[402766599,1768896172396,329.75,7.102e-05,2]
[402766600,1768896172806,494.63,7.425e-05,2]
[402766601,1768896211774,200.0,0.00022127,120]
[402766602,1768896253109,152.28,7.49e-05,2]
[402766603,1768896256773,504.0797207,0.00027397,120]
[402766604,1768896326697,500.0,0.00027397,120]
[402766605,1768896326961,501.80856101,0.00027397,120]
[402766606,1768896332886,150.35,6.776e-05,2]
[402766607,1768896333340,300.69,7.099e-05,2]
[402766608,1768896333782,451.04,7.422e-05,2]
[402766609,1768896343026,500.0,0.00027397,120]
[402766610,1768896343117,500.0,0.00027397,120]
[402766611,1768896343369,500.0,0.00027397,120]
[402766612,1768896348039,500.0,0.00027397,120]
[402766613,1768896348279,513.1544134,0.00027397,120]
[402766614,1768896390859,500.0,0.00027397,120]
[402766615,1768896394891,500.0,0.00027397,120]
[402766616,1768896395173,500.0,0.00027397,120]
[402766617,1768896410468,501.46398572,0.00027397,120]
[402766618,1768896414657,277.73,7.132e-05,2]
[402766619,1768896414927,416.6,7.456e-05,2]
[402766620,1768896421594,1585.08,0.00027397,120]
[402766621,1768896465364,500.0,0.00027397,120]
[402766622,1768896465602,490.8750528,0.00027397,120]
[402766623,1768896495886,260.06,7.232e-05,2]
[402766624,1768896496395,390.09,7.561e-05,2]
[402766625,1768896496711,500.0,0.00027397,120]
[402766626,1768896496955,500.0,0.00027397,120]
[402766627,1768896497244,500.0,0.00027397,120]
[402766628,1768896533213,501.23788676,0.00027397,120]
[402766629,1768896583408,243.51,7.167e-05,2]
[402766630,1768896583865,365.26,7.493e-05,2]
[402766631,1768896612387,8046.76,7.598e-05,2]
[402766632,1768896612420,6356.77200474,7.598e-05,2]
[402766669,1768896632485,-268.82352808,7.698e-05,2]
[402766671,1768896632496,-300.0,7.798e-05,2]
[402766673,1768896632507,-683.27139992,7.798e-05,2]
[402766677,1768896632533,-1744.52839776,7.798e-05,2]
[402766810,1768896638682,-229.85992193,7.797e-05,2]
[402766812,1768896638694,-530.04031552,7.797e-05,2]
[402766815,1768896638706,-2612.08800018,7.798e-05,2]
[402766817,1768896638719,-12387.62342904,7.798e-05,2]
[402766819,1768896638729,-491.84155699,7.8e-05,2]
[402766821,1768896638742,-177.93844301,7.8e-05,2]
[402766823,1768896638753,-487.02,7.818e-05,2]
[402766825,1768896638763,-608.77,8.144e-05,2]
[402766827,1768896638774,-730.52,8.47e-05,2]
[402766830,1768896638784,-852.28,8.796e-05,2]
[402766832,1768896638794,-974.03,9.121e-05,2]
[402766834,1768896638804,-879.93483389,9.447e-05,2]
[402766836,1768896638817,-215.85516611,9.447e-05,2]
[402766838,1768896638828,-317.21176313,9.698e-05,2]
[402766840,1768896638839,-551.83507076,9.773e-05,2]
[402766842,1768896638852,-665.70492924,9.773e-05,2]
[402766843,1768896638863,-629.0,0.00010887,2]
[402766844,1768896638874,-2148.0,0.00010887,2]
[402766845,1768896638885,-1368.0,0.00010887,2]
[402766847,1768896638895,-417.0,0.00010887,2]
[402766849,1768896638905,-178.0,0.00010887,2]
[402766851,1768896638916,-1041.66666667,0.00011625,2]
[402766853,1768896638927,-365.59999818,0.00011698,2]
[402766855,1768896638936,-352.67,0.00012329,2]
[402766856,1768896638946,-304.73321212,0.00012899,2]
[402766857,1768896638956,-1392.92538889,0.000129,2]
[402766858,1768896638965,-434.50554381,0.000129,2]
[402766859,1768896638975,-442.52888935,0.000129,2]
[402766860,1768896638984,-375.50355203,0.000129,2]
[402766861,1768896638993,-5698.61168709,0.000129,2]
[402766862,1768896639003,-5698.61168706,0.000129,2]
[402766863,1768896639012,-500.0,0.00013273,2]
[402766864,1768896639023,-505.78880887,0.00013273,2]
[402766865,1768896639339,-500.0,0.00013273,2]
[402766866,1768896639360,-500.0,0.00013273,2]
[402766867,1768896639370,-500.0,0.00013273,2]
[402766868,1768896639379,-500.0,0.00013273,2]
[402766869,1768896639388,-500.0,0.00013273,2]
[402766870,1768896639400,-500.0,0.00013273,2]
[402766871,1768896639410,-598.00150884,0.000134,2]
[402766872,1768896639421,-299.999999,0.00013424,2]
[402766873,1768896639430,-500.0,0.00013424,2]
[402766874,1768896639439,-5924.99858435,0.00013454,7]
[402766875,1768896639449,-3440.43810747,0.00013454,7]
[402766876,1768896639457,-475.0,0.00013531,2]
[402766877,1768896639468,-475.0,0.00013531,2]
[402766878,1768896639477,-475.0,0.00013531,2]
[402766879,1768896639487,-475.0,0.00013531,2]
[402766880,1768896639496,-475.0,0.00013531,2]
[402766881,1768896639506,-475.0,0.00013531,2]
[402766882,1768896639517,-475.0,0.00013531,2]
[402766883,1768896639528,-500.0,0.00013561,2]
[402766884,1768896639539,-237.15,0.0001358,2]
[402766885,1768896639549,-3876.0,0.00013585,2]
[402766886,1768896639558,-475.0,0.00013593,2]
[402766887,1768896639567,-300.0,0.00013673,2]
[402766888,1768896639576,-83837.87947003,0.0001368,2]
[402766889,1768896639592,-2447.396,0.0001368,2]
[402766890,1768896639603,-12089.78473834,0.0001368,2]
[402766891,1768896639613,-16069.68962887,0.00013694,3]
[402766892,1768896639622,-10611.47207915,0.00013694,3]
[402766893,1768896639634,-2787.66697875,0.00013694,3]
[402766909,1768896641215,-3e-08,0.00013694,3]
[402767007,1768896643688,-534.36671028,0.00013694,3]
[402767008,1768896643827,-435.015,0.00013694,3]
[402767035,1768896647320,-2736.66536092,0.00013694,3]
[402767036,1768896661323,181.53,6.956e-05,2]
[402767037,1768896661756,242.05,7.259e-05,2]
[402767038,1768896662226,302.56,7.561e-05,2]
[402767039,1768896662668,363.07,7.864e-05,2]
[402767040,1768896663124,423.58,8.166e-05,2]
[402767041,1768896663564,484.09,8.468e-05,2]
[402767042,1768896664020,544.6,8.771e-05,2]
[402767043,1768896683455,-579.60121921,9.073e-05,2]
[402767044,1768896691368,200.0,0.00022375,120]
[402767045,1768896696868,-25.50878079,9.073e-05,2]
[402767046,1768896696898,-178.0,0.00011486,2]
[402767048,1768896736823,163.71,8.305e-05,2]
[402767049,1768896737245,184.18,8.602e-05,2]
[402767050,1768896751316,200.0,0.00025946,120]
[402767053,1768896871096,200.0,0.00027019,120]
[402767056,1768897007641,150.38,6.499e-05,2]
[402767057,1768897008089,200.51,6.781e-05,2]
[402767058,1768897008532,250.64,7.064e-05,2]
[402767059,1768897009489,300.77,7.347e-05,2]
[402767060,1768897009923,350.9,7.629e-05,2]
[402767061,1768897013188,401.03,7.912e-05,2]
[402767062,1768897013654,451.15,8.194e-05,2]
[402767063,1768897014085,501.28,8.477e-05,2]
[402767066,1768897051177,200.0,0.00020809,120]
[402767068,1768897068234,500.0,7.797e-05,2]
[402767069,1768897068269,500.0,7.797e-05,2]
[402767070,1768897068303,500.0,7.797e-05,2]
[402767071,1768897068333,500.0,7.797e-05,2]
[402767072,1768897068541,500.0,7.797e-05,2]
[402767073,1768897068572,500.0,7.797e-05,2]
[402767074,1768897068608,500.0,7.797e-05,2]
[402767075,1768897068638,400.93378366,7.797e-05,2]
[402767076,1768897068682,500.0,7.797e-05,2]
[402767077,1768897068716,500.0,7.797e-05,2]
[402767078,1768897068861,416.40483068,7.797e-05,2]
[402767079,1768897068992,500.0,7.797e-05,2]
[402767080,1768897069028,500.0,7.797e-05,2]
[402767081,1768897069404,500.0,7.797e-05,2]
[402767082,1768897069653,500.0,7.797e-05,2]
[402767083,1768897069897,76.01138566,7.797e-05,2]
[402767084,1768897069930,423.98861434,7.797e-05,2]
[402767085,1768897069993,500.0,7.797e-05,2]
[402767086,1768897070762,500.0,7.797e-05,2]
[402767088,1768897070910,500.0,7.797e-05,2]
[402767089,1768897071300,500.0,7.797e-05,2]
[402767090,1768897071334,500.0,7.797e-05,2]
[402767091,1768897071372,500.0,7.797e-05,2]
[402767092,1768897071407,500.0,7.797e-05,2]
[402767093,1768897071450,500.0,7.797e-05,2]
[402767094,1768897071489,500.0,7.797e-05,2]
[402767095,1768897071531,500.0,7.797e-05,2]
[402767096,1768897071565,500.0,7.797e-05,2]
[402767097,1768897071603,500.0,7.797e-05,2]
[402767098,1768897071637,500.0,7.797e-05,2]
[402767099,1768897071670,500.0,7.797e-05,2]
[402767100,1768897071713,500.0,7.797e-05,2]
[402767101,1768897071750,500.0,7.797e-05,2]
[402767102,1768897071783,500.0,7.797e-05,2]
[402767103,1768897071816,500.0,7.797e-05,2]
[402767104,1768897071855,500.0,7.797e-05,2]
[402767105,1768897071891,76.02138566,7.797e-05,2]
[402767106,1768897071919,423.97861434,7.797e-05,2]
[402767107,1768897071952,500.0,7.797e-05,2]
[402767108,1768897071984,500.0,7.797e-05,2]
[402767109,1768897072020,383.65,7.797e-05,2]
[402767111,1768897088107,500.0,7.797e-05,2]
[402767112,1768897088158,500.0,7.797e-05,2]
[402767113,1768897088216,463.92697125,7.797e-05,2]
[402767114,1768897088337,500.0,7.797e-05,2]
[402767115,1768897088377,500.0,7.797e-05,2]
[402767116,1768897088427,500.0,7.797e-05,2]
[402767117,1768897088483,500.0,7.797e-05,2]
[402767118,1768897088525,500.0,7.797e-05,2]
[402767119,1768897088565,500.0,7.797e-05,2]
[402767120,1768897088598,500.0,7.797e-05,2]
[402767121,1768897088638,500.0,7.797e-05,2]
[402767122,1768897088671,500.0,7.797e-05,2]
[402767123,1768897088707,500.0,7.797e-05,2]
[402767124,1768897088746,500.0,7.797e-05,2]
[402767125,1768897088787,500.0,7.797e-05,2]
[402767126,1768897088822,500.0,7.797e-05,2]
[402767127,1768897088861,228.45441441,7.797e-05,2]
[402767128,1768897088892,271.54558559,7.797e-05,2]
[402767129,1768897088931,500.0,7.797e-05,2]
[402767130,1768897088976,500.0,7.797e-05,2]
[402767131,1768897089033,500.0,7.797e-05,2]
[402767132,1768897126028,500.0,7.797e-05,2]
[402767133,1768897171879,200.0,0.0002272,120]
[402767135,1768897234684,176.0,0.00024249,120]
[402767136,1768897236156,176.0,0.00025462,120]
[402767137,1768897237472,176.0,0.00026735,120]
[402767138,1768897262537,237.0,0.00024249,120]
[402767139,1768897264432,237.0,0.00025462,120]
[402767140,1768897266412,237.0,0.00026735,120]
[402767141,1768897291883,200.0,0.00027206,120]
[402767142,1768897471614,200.0,0.00026769,120]
[402767143,1768897508458,170.0,0.00025564,120]
[402767144,1768897509560,2359.56894242,0.00027,120]
[402767145,1768897509739,170.0,0.00026842,120]
[402767149,1768897625685,154.98,6.959e-05,2]
[402767150,1768897626132,193.73,7.249e-05,2]
[402767151,1768897626602,232.47,7.539e-05,2]
[402767152,1768897627203,271.22,7.829e-05,2]
[402767153,1768897627663,309.96,8.119e-05,2]
[402767154,1768897628115,348.71,8.409e-05,2]
[402767155,1768897628570,387.45,8.698e-05,2]
[402767156,1768897651486,200.0,0.00026316,120]
[402767159,1768897703133,10000.01,5e-05,2]
[402767160,1768897703161,20.26231659,5e-05,2]
[402767163,1768897806593,170.0,0.00026662,120]
[402767164,1768897830852,200.0,0.00023947,120]
[402767245,1768897837887,-4783.7046535,0.00010482,2]
[402767246,1768897837898,-256.73519713,0.00011094,2]
[402767247,1768897837908,-2054.4242981,0.00011382,2]
[402767248,1768897837918,-300.0,0.00011479,2]
[402767249,1768897837927,-300.0,0.0001148,2]
[402767250,1768897837938,-300.0,0.0001148,2]
[402767251,1768897837947,-300.0,0.0001148,2]
[402767252,1768897837956,-300.0,0.0001148,2]
[402767253,1768897837965,-1200.0,0.0001148,2]
[402767254,1768897837974,-265.35871637,0.00011481,2]
[402767255,1768897837983,-232.96705189,0.00011481,2]
[402767256,1768897837992,-191.85280656,0.00011481,2]
[402767257,1768897838001,-354.77391907,0.00011481,2]
[402767258,1768897838010,-500.0,0.00011481,2]
[402767259,1768897838019,-500.0,0.00011481,2]
[402767260,1768897838028,-500.0,0.00011481,2]
[402767261,1768897838037,-500.0,0.00011481,2]
[402767262,1768897838048,-500.0,0.00011481,2]
[402767263,1768897838057,-500.0,0.00011481,2]
[402767264,1768897838067,-500.0,0.00011481,2]
[402767265,1768897838076,-500.0,0.00011481,2]
[402767266,1768897838085,-500.0,0.00011481,2]
[402767267,1768897838095,-500.0,0.00011481,2]
[402767268,1768897838105,-500.0,0.00011481,2]
[402767269,1768897838114,-500.0,0.00011481,2]
[402767270,1768897838124,-500.0,0.00011481,2]
[402767271,1768897838134,-420.26501148,0.00011481,2]
[402767272,1768897838144,-500.0,0.00011481,2]
[402767273,1768897838154,-500.0,0.00011481,2]
[402767274,1768897838163,-500.0,0.00011481,2]
[402767275,1768897838173,-500.0,0.00011481,2]
[402767276,1768897838184,-500.0,0.00011481,2]
[402767277,1768897838194,-500.0,0.00011481,2]
[402767278,1768897838204,-500.0,0.00011481,2]
[402767279,1768897838214,-500.0,0.00011481,2]
[402767280,1768897838224,-500.0,0.00011481,2]
[402767281,1768897838234,-500.0,0.00011481,2]
[402767282,1768897838243,-500.0,0.00011481,2]
[402767283,1768897838253,-500.0,0.00011481,2]
[402767284,1768897838263,-500.0,0.00011481,2]
[402767285,1768897838273,-618.30017648,0.00011481,2]
[402767286,1768897838286,-500.0,0.00011481,2]
[402767287,1768897838296,-500.0,0.00011481,2]
[402767288,1768897838306,-500.0,0.00011481,2]
[402767289,1768897838316,-500.0,0.00011481,2]
[402767290,1768897838325,-500.0,0.00011481,2]
[402767291,1768897838339,-500.0,0.00011481,2]
[402767292,1768897838349,-500.0,0.00011481,2]
[402767293,1768897838358,-500.0,0.00011481,2]
[402767294,1768897838368,-500.0,0.00011481,2]
[402767295,1768897838377,-500.0,0.00011481,2]
[402767296,1768897838387,-500.0,0.00011481,2]
[402767297,1768897838397,-500.0,0.00011481,2]
[402767298,1768897838407,-500.0,0.00011481,2]
[402767299,1768897838416,-500.0,0.00011481,2]
[402767300,1768897838425,-500.0,0.00011481,2]
[402767301,1768897838435,-500.0,0.00011481,2]
[402767302,1768897838445,-500.0,0.00011481,2]
[402767303,1768897838456,-500.0,0.00011481,2]
[402767304,1768897838466,-500.0,0.00011481,2]
[402767305,1768897838475,-500.0,0.00011481,2]
[402767306,1768897838484,-500.0,0.00011481,2]
[402767307,1768897838495,-500.0,0.00011481,2]
[402767308,1768897838504,-500.0,0.00011481,2]
[402767309,1768897838514,-500.0,0.00011481,2]
[402767310,1768897838523,-500.0,0.00011481,2]
[402767311,1768897838533,-500.0,0.00011481,2]
[402767312,1768897838542,-500.0,0.00011481,2]
[402767313,1768897838551,-500.0,0.00011481,2]
[402767314,1768897838560,-500.0,0.00011481,2]
[402767315,1768897838570,-500.0,0.00011481,2]
[402767316,1768897838579,-500.0,0.00011481,2]
[402767317,1768897838588,-500.0,0.00011481,2]
[402767318,1768897838599,-500.0,0.00011481,2]
[402767319,1768897838608,-500.0,0.00011481,2]
[402767320,1768897838618,-500.0,0.00011481,2]
[402767321,1768897838628,-500.0,0.00011481,2]